Cogmind - Beta 9.1 @@@ ROGUE MODE // 2019.11.06 @ 21:25:08 Player: LaGrange Result: Destroyed by S-27 Virus with Autogun Performance ------------- Evolutions (3) 1500 Regions Visited (6) 1200 Robots Destroyed (40) 200 Value Destroyed (952) 952 Prototype IDs (0) 0 Alien Tech Used (0) 0 Bonus (0) 0 TOTAL SCORE: 3852 Bonus ------- None Cogmind --------- Core Integrity 0/700 Matter 295/300 Energy 100/100 System Corruption 0% Temperature Cool (0) Location -7/Lower Caves Parts ------- Power (1) Propulsion (4) Utility (4) High-capacity Storage Unit Weapon (4) Inventory (12) Peak State ------------ Power Light Angular Momentum Engine Propulsion Wheel Armored Wheel Armored Huge Wheel Utility High-capacity Storage Unit Transmission Jammer ECM Suite Medium Armor Plating Weapon Beam Rifle Light EM Pulse Cannon Assault Rifle Flak Cannon Inventory Light Ion Engine Improved Ion Engine Medium Storage Unit Compact Matter Pod Structural Scanner Terrain Scanner High-powered Tractor Beam Light EM Pulse Cannon Light EM Pulse Cannon Particle Cannon [Rating: 32] Favorites ----------- Power Improved Ion Engine Engine Improved Ion Engine Propulsion Compact Wheel Leg Aluminum Leg Wheel Compact Wheel Utility High-capacity Storage Unit Device ECM Suite Storage High-capacity Storage Unit Protection Medium Armor Plating Weapon Assault Rifle Energy Gun Medium Laser Energy Cannon Light EM Pulse Cannon Ballistic Gun Assault Rifle Ballistic Cannon Light Cannon Build | -11 -10 -9 -9 -8 -7 -7 ------- Run | Scr Mat Mat Min Mat Fac Low Slots Evolved 6 | . . 2 . 2 2 . Power . | . . . . . . . Propulsion 2 | . . 2 . . . . Utility 2 | . . . . 1 1 . Weapon 2 | . . . . 1 1 . Parts Attached 66 | 6 7 13 1 24 11 4 Power 10 | 1 . 3 . 3 2 1 Engine 10 | 1 . 3 . 3 2 1 Core . | . . . . . . . Reactor . | . . . . . . . Propulsion 23 | 2 2 7 . 9 3 . Treads . | . . . . . . . Leg 2 | 2 . . . . . . Wheel 21 | . 2 7 . 9 3 . Hover . | . . . . . . . Flight . | . . . . . . . Utility 13 | . 4 . . 4 2 3 Device 7 | . 1 . . 2 2 2 Storage 4 | . 3 . . . . 1 Processor . | . . . . . . . Hackware . | . . . . . . . Protection 2 | . . . . 2 . . Artifact . | . . . . . . . Weapon 20 | 3 1 3 1 8 4 . Energy Gun 4 | 2 . . . 2 . . Energy Cannon 5 | . . . . 1 4 . Ballistic Gun 7 | 1 . 2 . 4 . . Ballistic Cannon 4 | . 1 1 1 1 . . Launcher . | . . . . . . . Special Weapon . | . . . . . . . Impact Weapon . | . . . . . . . Slashing Weapon . | . . . . . . . Piercing Weapon . | . . . . . . . Special Melee Weapon . | . . . . . . . Unidentified Prototypes . | . . . . . . . Parts Lost 40 | . . 3 1 13 15 8 Power 7 | . . . . 3 2 2 Propulsion 11 | . . 2 . 4 3 2 Utility 7 | . . . . . 4 3 Weapon 15 | . . 1 1 6 6 1 Highest Loss Streak 14 | . . 2 1 11 14 8 Average Slot Usage (%) 90 | . 88 99 98 90 85 39 Engine 10 | . 14 11 11 8 7 5 Leg 3 | . 21 . . . . . Wheel 29 | . 6 43 44 31 23 7 Device 11 | . 3 11 11 14 15 9 Storage 10 | . 12 11 11 9 7 12 Protection 1 | . . . . 3 2 . Energy Gun 1 | . 6 . . . 4 . Energy Cannon 1 | . . . . . 10 2 Ballistic Gun 11 | . 14 11 11 14 4 . Ballistic Cannon 8 | . 7 11 10 7 5 . Naked Turns . | . . . . . . . Heaviest Build 65 | 7 41 47 47 60 65 46 Greatest Support 64 | 20 20 52 46 64 54 44 Greatest Overweight (x) 13 | . 2 1 1 1 1 13 Average Overweight (x) . | . . . . . . 2 Largest Inventory Capacity 12 | 4 12 12 12 12 12 12 Average Capacity 11 | 4 8 12 12 12 12 12 Most Carried 12 | 4 12 12 12 12 12 3 Average Carried 9 | 2 7 11 11 9 9 . Final Capacity 12 | 4 12 12 12 12 12 12 Final Carried 12 | 4 11 11 12 12 4 . Class Distribution -------------------- 44% | Mutant 19% | Scavenger-Mutant 12% | Scavenger-Tank 8% | Gunner 5% | Infiltrator-Mutant 4% | Scavenger-Gunner Dominant Class ---------------- Mutant | -10/Materials Mutant | -9/Materials Scavenger-Mutant | -9/Mines Scavenger-Tank | -8/Materials Scavenger-Tank | -7/Factory Mutant | -7/Lower Caves Resources | -11 -10 -9 -9 -8 -7 -7 ----------- Run | Scr Mat Mat Min Mat Fac Low Matter Collected 1559 | 269 10 525 117 397 . 241 Remotely 241 | . . . . . . 241 Salvage Created 1131 | 69 10 594 85 373 . . Parts 80 | 2 3 35 14 26 . . Haulers Intercepted . | . . . . . . . Recyclers Shooed . | . . . . . . . Parts Field Recycled . | . . . . . . . Retrieved Matter . | . . . . . . . Parts Self-Destructed . | . . . . . . . Prevented . | . . . . . . . Kills | -11 -10 -9 -9 -8 -7 -7 ------- Run | Scr Mat Mat Min Mat Fac Low Combat Hostiles Destroyed 33 | 1 . 16 7 9 . . Guns 20 | 1 . 9 7 3 . . Cannons 13 | . . 7 . 6 . . Classes Destroyed 8 | 2 1 3 . 2 . . Worker 2 | 1 . 1 . . . . Builder 1 | . . . . 1 . . Recycler 2 | . . 1 . 1 . . Watcher 2 | . 1 . . 1 . . Swarmer 16 | . . 6 7 3 . . Grunt 11 | 1 . 6 . 4 . . Sentry 5 | . . 4 . 1 . . Hunter 1 | . . . . 1 . . Best Kill Streak 4 | 1 1 4 3 4 . . Combat Bots Only 4 | 1 . 4 3 3 . . Max Kills in Single Turn 2 | 1 1 1 1 2 . . Gunslinging . | . . . . . . . Exploded . | . . . . . . . Melee . | . . . . . . . Uniques/NPCs Destroyed . | . . . . . . . Combat | -11 -10 -9 -9 -8 -7 -7 -------- Run | Scr Mat Mat Min Mat Fac Low Damage Taken 4478 | 88 30 710 234 1242 1208 966 Core 1074 | 10 . 107 22 234 228 473 Absorbed by Shields . | . . . . . . . Core Remaining (%) 79 | 96 96 . 67 57 . . Volleys Fired 126 | 11 4 46 17 32 14 2 Largest 4 | 2 2 2 2 3 4 1 Hottest 176 | 90 55 62 62 132 176 68 Shots Fired 264 | 19 8 92 31 81 31 2 Gun 147 | 19 4 46 17 51 10 . Cannon 117 | . 4 46 14 30 21 2 Launcher . | . . . . . . . Special . | . . . . . . . Kinetic 219 | 3 8 92 31 75 10 . Thermal 33 | 11 . . . 6 14 2 Explosive . | . . . . . . . Electromagnetic 12 | 5 . . . . 7 . Robot Hit Streak 10 | 7 8 8 10 8 8 1 Robot Miss Streak 5 | 1 . 3 3 5 3 1 Penetration Max . | . . . . . . . Secondary Targets . | . . . . . . . Shots Hit Robots 174 | 13 1 56 16 62 25 1 Core Hits 74 | 3 1 21 7 37 5 . Critical Hits 2 | . . 1 1 . . . Critical Kills 2 | . . 1 1 . . . Critical Parts Destroyed . | . . . . . . . Melee Attacks . | . . . . . . . Impact . | . . . . . . . Slashing . | . . . . . . . Piercing . | . . . . . . . Sneak Attacks . | . . . . . . . Combat Hostiles . | . . . . . . . Follow-up Attacks . | . . . . . . . Damage Inflicted 2388 | 146 15 951 207 658 391 20 Guns 1165 | 146 15 458 149 324 73 . Cannons 1223 | . . 493 58 334 318 20 Explosions . | . . . . . . . Melee . | . . . . . . . Ramming . | . . . . . . . Kinetic 1904 | 34 15 951 207 590 107 . Thermal 382 | 86 . . . 68 208 20 Explosive . | . . . . . . . Electromagnetic 102 | 26 . . . . 76 . Impact . | . . . . . . . Slashing . | . . . . . . . Piercing . | . . . . . . . Highest Corruption . | . . . . . . . Average Corruption . | . . . . . . . Corruption Purged . | . . . . . . . Overload Shots . | . . . . . . . Overflow Damage 23 | . . 1 4 . 18 . Projectiles 23 | . . 1 4 . 18 . Explosions . | . . . . . . . Melee . | . . . . . . . Knockbacks 15 | . . 5 2 8 . . Impact . | . . . . . . . Kinetic 14 | . . 4 2 8 . . Secondary 1 | . . 1 . . . . Self-Inflicted Damage . | . . . . . . . Shots . | . . . . . . . Rammed . | . . . . . . . Targets Rammed . | . . . . . . . Kicked . | . . . . . . . Crushed . | . . . . . . . Highest Temperature 450 | 205 . 14 . 165 450 24 Average Temperature 81 | 104 . 6 . 46 189 15 Received Heat Transfer 1005 | 48 . 168 15 414 360 . Effects 3 | . . . . . 3 . Energy Bleed 1 | . . . . . 1 . Matter Decay 1 | . . . . . 1 . Damage (minor) 1 | . . . . . 1 . Siege Activations . | . . . . . . . Robots Corrupted . | . . . . . . . Combat Hostiles . | . . . . . . . Parts Fried . | . . . . . . . Impact Corruptions . | . . . . . . . Robots Melted . | . . . . . . . Combat Hostiles . | . . . . . . . Parts Melted 2 | 2 . . . . . . Heat Transferred 851 | 259 . . . 148 407 37 Parts Sabotaged . | . . . . . . . Parts Stolen . | . . . . . . . Parts Stripped . | . . . . . . . Power Chain Reactions . | . . . . . . . Missiles Intercepted . | . . . . . . . Alert | -11 -10 -9 -9 -8 -7 -7 ------- Run | Scr Mat Mat Min Mat Fac Low Peak Influence 294 | 25 72 294 279 209 53 . Average Influence 98 | 5 42 142 218 100 35 . Maximum Alert Level 1 | . . 1 1 1 . . Low Security (%) 87 | . . . . . . . Level 1 12 | . . . . . . . Level 2 . | . . . . . . . Level 3 . | . . . . . . . Level 4 . | . . . . . . . Level 5 . | . . . . . . . High Security . | . . . . . . . Max Security . | . . . . . . . Squads Dispatched 5 | . 2 3 . . . . Investigation 2 | . 1 1 . . . . Extermination . | . . . . . . . Reinforcement 3 | . 1 2 . . . . Assault . | . . . . . . . Garrison . | . . . . . . . Intercept . | . . . . . . . Construction Impeded . | . . . . . . . Haulers Reinforced . | . . . . . . . Stealth | -11 -10 -9 -9 -8 -7 -7 --------- Run | Scr Mat Mat Min Mat Fac Low Distress Signals 1 | . . 1 . . . . Communications Jammed 7 | . . . . 7 . . Distress Signals 7 | . . . . 7 . . Times Spotted 78 | 1 5 30 12 23 4 3 Peak Tracking Total 6 | 1 1 4 5 6 3 3 Tactical Retreats 11 | . . 5 1 3 2 . Traps | -11 -10 -9 -9 -8 -7 -7 ------- Run | Scr Mat Mat Min Mat Fac Low Traps Triggered 2 | . 2 . . . . . Indirectly . | . . . . . . . Trap Hack Attempts . | . . . . . . . Triggered . | . . . . . . . Disarmed . | . . . . . . . Reprogrammed . | . . . . . . . Reused . | . . . . . . . Traps Extracted . | . . . . . . . Installed . | . . . . . . . Triggered . | . . . . . . . Machines | -11 -10 -9 -9 -8 -7 -7 ---------- Run | Scr Mat Mat Min Mat Fac Low Machines Disabled 1 | . . . 1 . . . Max in Single Turn 1 | . . . 1 . . . Machines Sabotaged . | . . . . . . . Garrisons Compromised . | . . . . . . . Overloaded Fab Kills . | . . . . . . . Fab Network Shutdowns . | . . . . . . . Hacking | -11 -10 -9 -9 -8 -7 -7 --------- Run | Scr Mat Mat Min Mat Fac Low Machines Accessed 8 | . 4 3 . 1 . . Terminals 6 | . 4 1 . 1 . . Fabricators . | . . . . . . . Repair Stations . | . . . . . . . Recycling Units 1 | . . 1 . . . . Scanalyzers 1 | . . 1 . . . . Garrison Access . | . . . . . . . Total Hacks 28 | . 13 10 . 5 . . Successful 19 | . 8 7 . 4 . . Failed 9 | . 5 3 . 1 . . Catastrophic . | . . . . . . . Database Lockouts . | . . . . . . . Manual . | . . . . . . . Terminals 20 | . 13 2 . 5 . . Fabricators . | . . . . . . . Repair Stations . | . . . . . . . Recycling Units 4 | . . 4 . . . . Scanalyzers 4 | . . 4 . . . . Garrison Access . | . . . . . . . Terminal Hacks 12 | . 8 . . 4 . . Record 3 | . 1 . . 2 . . Scanalyzer Index 1 | . 1 . . . . . Alert Level 2 | . 2 . . . . . Dispatch Records 1 | . 1 . . . . . Patrol Status 1 | . 1 . . . . . Investigation Status 2 | . 1 . . 1 . . Recall Investigation 1 | . . . . 1 . . Recall Reinforcements 1 | . 1 . . . . . Fabricator Hacks . | . . . . . . . Repair Station Hacks . | . . . . . . . Recycling Unit Hacks 3 | . . 3 . . . . Report Inventory 2 | . . 2 . . . . Retrieve Matter 1 | . . 1 . . . . Scanalyzer 4 | . . 4 . . . . Insert Component 1 | . . 1 . . . . Analyze 3 | . . 3 . . . . Garrison Access Hacks . | . . . . . . . Unauthorized Hacks . | . . . . . . . Terminals . | . . . . . . . Fabricators . | . . . . . . . Repair Stations . | . . . . . . . Recycling Units . | . . . . . . . Scanalyzers . | . . . . . . . Garrison Access . | . . . . . . . Data Cores Recovered . | . . . . . . . Used . | . . . . . . . Hacking Detections 7 | . 4 2 . 1 . . Full Trace Events 1 | . . 1 . . . . Feedback Events . | . . . . . . . Feedback Blocked . | . . . . . . . Robot Schematics Acquired . | . . . . . . . Robots Built . | . . . . . . . Matter . | . . . . . . . Time . | . . . . . . . Total Robot Build Rating . | . . . . . . . Part Schematics Acquired 1 | . . 1 . . . . Parts Built . | . . . . . . . Matter . | . . . . . . . Time . | . . . . . . . Total Part Build Rating . | . . . . . . . Parts Repaired . | . . . . . . . Time . | . . . . . . . Parts Recycled . | . . . . . . . Recycled Matter . | . . . . . . . Retrieved Matter . | . . . . . . . Retrieved Components . | . . . . . . . Parts Scanalyzed 1 | . . 1 . . . . Part Schematics Acquired 1 | . . 1 . . . . Parts Damaged . | . . . . . . . Bothacking | -11 -10 -9 -9 -8 -7 -7 ------------ Run | Scr Mat Mat Min Mat Fac Low Used RIF Installer . | . . . . . . . Robots Hacked . | . . . . . . . Non-combat . | . . . . . . . Combat . | . . . . . . . Robot Hacks Applied . | . . . . . . . Relay Couplers Released . | . . . . . . . Robots Rewired . | . . . . . . . Allies Hacked . | . . . . . . . Hacks Repelled . | . . . . . . . Allies | -11 -10 -9 -9 -8 -7 -7 -------- Run | Scr Mat Mat Min Mat Fac Low Total Allies . | . . . . . . . Largest Group . | . . . . . . . Highest-Rated Group . | . . . . . . . Highest-Rated Ally . | . . . . . . . Total Orders . | . . . . . . . Ally Attacks . | . . . . . . . Total Damage . | . . . . . . . Kills . | . . . . . . . Allies Corrupted . | . . . . . . . Allies Melted . | . . . . . . . Intel | -11 -10 -9 -9 -8 -7 -7 ------- Run | Scr Mat Mat Min Mat Fac Low Robot Analysis Total . | . . . . . . . Derelict Logs Recovered . | . . . . . . . Drone Launches . | . . . . . . . Drone Recoveries . | . . . . . . . Exploration | -11 -10 -9 -9 -8 -7 -7 ------------- Run | Scr Mat Mat Min Mat Fac Low Turns Passed 2301 | 123 372 673 107 714 196 116 Spaces Moved 1292 | 76 206 400 58 370 121 61 Core 25 | 17 . . . . . 8 Treads . | . . . . . . . Legs 218 | 59 159 . . . . . Wheels 1049 | . 47 400 58 370 121 53 Hover . | . . . . . . . Flight . | . . . . . . . Fastest Speed 50 | 50 100 85 85 90 100 110 Average Speed 104 | 104 124 91 89 100 100 178 Slowest Speed 700 | 120 150 96 95 110 102 700 Overloaded Moves . | . . . . . . . Propulsion Burnouts . | . . . . . . . Robots Hopped . | . . . . . . . Cave-ins Triggered . | . . . . . . . Exploration Rate (%) 16 | 7 27 36 10 26 4 6 Regions Visited 6 Branch Regions 2 Pre-discovered Areas . | . . . . . . . Known Exits Taken . | . . . . . . . Unknown Exits Taken 6 | 1 1 1 1 1 1 . Scrap Searched 1 | . . . 1 . . . Spaces Dug . | . . . . . . . Terrain Destroyed 2 | . . 2 . . . . Melee . | . . . . . . . Projectile 2 | . . 2 . . . . AOE . | . . . . . . . Actions | -11 -10 -9 -9 -8 -7 -7 --------- Run | Scr Mat Mat Min Mat Fac Low Total 2006 | 98 314 620 82 650 173 69 Wait 445 | . 77 136 3 208 19 2 Move 1286 | 75 205 399 57 369 120 61 Hop . | . . . . . . . Pick Up 50 | 5 14 12 3 11 5 . Fast Attach 13 | 5 2 1 . 5 . . Attach 31 | . 1 4 1 10 11 4 Detach . | . . . . . . . Swap 22 | 1 4 8 . 9 . . Drop 33 | 1 7 14 1 6 4 . Fire 126 | 11 4 46 17 32 14 2 Melee . | . . . . . . . Ram . | . . . . . . . Kick . | . . . . . . . Crush . | . . . . . . . Escape Stasis . | . . . . . . . Rewire . | . . . . . . . Trap . | . . . . . . . Miscellaneous . | . . . . . . . Route ------- -11/Scrapyard -10/Materials -9/Materials -9/Mines -8/Materials -7/Factory -7/Lower Caves History --------- Turn | Location | Event 2 | -11/Scrapyard | Met Revision 17 82 | -11/Scrapyard | Discovered new exit (range 8) 124 | -11/Scrapyard | Entered Materials 324 | -10/Materials | Build established: Mutant 472 | -10/Materials | Discovered new exit (range 15) 496 | -10/Materials | Entered another Materials area 496 | -9/Materials | Evolved 2 slots: Propulsion x2 1157 | -9/Materials | Discovered new exit (range 13) 1169 | -9/Materials | Entered Mines 1182 | -9/Mines | Build established: Scavenger-Mutant 1212 | -9/Mines | Discovered new exit (range 4) 1276 | -9/Mines | Entered Materials 1276 | -8/Materials | Evolved 2 slots: Utility x1, Weapon x1 1602 | -8/Materials | Lost 11 parts (3p4n4w) 1959 | -8/Materials | Discovered new exit (range 15) 1990 | -8/Materials | Entered Factory 1990 | -7/Factory | Evolved 2 slots: Utility x1, Weapon x1 2143 | -7/Factory | Discovered new exit (range 13) 2186 | -7/Factory | Entered Lower Caves 2213 | -7/Lower Caves | Lost 14 parts (2p3n3u6w) 2262 | -7/Lower Caves | Core integrity fell below 50% 2282 | -7/Lower Caves | Core integrity fell below 20% 2302 | -7/Lower Caves | Destroyed by S-27 Virus with Autogun Last Messages --------------- 02186_ Y-54 Guardian heat damages Imp. Heat Sink, Imp. Light Armor Plating, Gatling Laser, Imp. Heat Sink. LOCATION=UNKNOWN GOAL=ESCAPE 02230_ Com. Wheel destroyed. 02235_ Particle Cannon destroyed. 02245_ S2-TCA(r) destroyed. 02246_ Acquired 92 matter. 02247_ 2C-ION(r) destroyed. 02248_ Acquired 99 matter. [Achievement: Use The Force] 02249_ 12-WUK(r) collects Lgt. Deuterium Engine. 02252_ 12-WUK(r) destroyed. 02253_ Acquired 50 matter. 02254_ Hpw. Tractor Beam destroyed. 02254_ Arm. Huge Wheel destroyed. 02261_ Com. Matter Pod destroyed. 02268_ Imp. Ion Engine destroyed. 02272_ Structural Scanner destroyed. 02297_ Lgt. Ion Engine destroyed. Map ----- +----------------------------------------------------+ | ???????????????????????????????????????????? | | ???????????????????????????????????????????? | | ???????????????????????????????????????????? | | ???????????????????????????????????????????? | | ??#????????????????????????????????????????? | | ??# ????????????##?????????????????????????? | | ?# ???????### ##????????????????????????? | | ?# ?????## ##???? ##????????????????? | | ?# #???# ## #????????????????? | | # ??# ???????????????????? | | ? ?# #????????????????????????? | | ??????# # ####????????????????????????? | | ??????# #???????????????????????????? | | ??????### #######?????????????????????? | | ????????## #?????????????????????? | | ?????????# #?????????????????????? | | ?????????# #### #?????????????????????? | | ????# #??# #?????????????????????? | | ???# #??# #?????????????????????? | | ???## ??# #?????????????????????? | | ????# ###??# ######????????????????? | | ????# ?????# #????????????????? | | ????##### #?????# #### #????????????????? | | ????????# #?????## #??# #????????????????? | | ???????? ??????# *#??# #????????????????? | | ???????# ??????# %##?#@##???????????????? | | ???????# ?????## ###s ##??????????????? | | ???????# ????### #??????????????? | | ???????????????# s #??????????????? | | ???????????????# ## s ##??????????????? | | ???????????????####### ##???????????????? | | ?????????????????????## #????????????????? | | ??????????????????????# ##????????????????? | | ??????????????????????####?????????????????? | | ???????????????????????????????????????????? | | ???????????????????????????????????????????? | | ???????????????????????????????????????????? | | ???????????????????????????????????????????? | | ???????????????????????????????????????????? | | ???????????????????????????????????????????? | | ???????????????????????????????????????????? | | ???????????????????????????????????????????? | | ???????????????????????????????????????????? | | ???????????????????????????????????????????? | | ???????????????????????????????????????????? | | ???????????????????????????????????????????? | | ???????????????????????????????????????????? | | ???????????????????????????????????????????? | | ???????????????????????????????????????????? | | ???????????????????????????????????????????? | +----------------------------------------------------+ Best States ------------- Heat Dissipation 34 Energy Generation 18 Energy Capacity 265 Matter Stores 450 Matter Capacity 450 Sight Range 16 Terrain Scan Range 14 Terrain Scan Density 10 ECM Strength 1 Jamming Range 8 Armor Coverage 225 Evasion (%) 50 Item Schematics ----------------- Cooling System | -9/Materials | Scanalyzed Robot Schematics ------------------ None Fabricated ------------ Nothing Alien Tech Used ----------------- None Achievements -------------- GoHome() One Hack Too Far Use The Force Challenges ------------ None Game ------ Seed SurveybotTrapCapacitor Manual? 0 Play Time 02:27:37 Cumulative 19.0 hours Start 2019.10.27 @ 13:52:31 End 2019.11.06 @ 21:25:08 Sessions 8 Manual Loads 0 Difficulty Rogue Special Mode None Game No. 14 Rogue 14 Adventurer 0 Explorer 0 Win Type - Total 0 Types 0/0/0/0/0/0/0 Lore% 14 Gallery% 16 Achievement% 10 Wizard Run 0 Options --------- ASCII 0 Keyboard 0 Movement Mouse Keybinds 0 Fullscreen 1 Font 18/Terminus Map View 76x50 Tactical HUD 1 Map Filters NONE Filters NONE Steam 1 RUN: df3c9e6b-da74-4405-bc86-c20b41eb7ebd